bitfinex/quotes_BTCUSD_20251201
["timestamp","ask_amount","ask_price","bid_price","bid_amount"]
[1764624371479,0.90096953,86361.0,86360.0,0.00111599]
[1764624371683,0.90096953,86361.0,86321.0,0.23169333]
[1764624371684,0.01158332,86331.0,86321.0,0.23169333]
[1764624371927,0.24326094,86328.0,86321.0,0.00011602]
[1764624372241,0.24325826,86328.0,86327.0,0.01148004]
[1764624372858,0.24325658,86329.0,86323.0,0.01158439]
[1764624372859,0.01158077,86350.0,86331.0,0.01158332]
[1764624373090,0.2316451,86339.0,86334.0,0.23165725]
[1764624373293,0.2316451,86339.0,86332.0,0.23166219]
[1764624373294,0.24323056,86338.0,86332.0,0.23166219]
[1764624373483,0.24322478,86340.0,86335.0,0.01158278]
[1764624373722,0.01158198,86341.0,86338.0,0.01148004]
[1764624373923,0.24321638,86343.0,86342.0,0.01148004]
[1764624374570,0.01158171,86343.0,86342.0,0.01148004]
[1764624375390,0.243216,86343.0,86342.0,0.01148004]
[1764624376329,0.243216,86343.0,86342.0,0.01248004]
[1764624379714,0.01158104,86348.0,86342.0,0.01248004]
[1764624379715,0.0115793,86361.0,86352.0,0.23160891]
[1764624379951,0.0115793,86361.0,86357.0,0.02305987]
[1764624380116,0.58943684,86380.0,86360.0,0.01157943]
[1764624380345,0.24315673,86365.0,86364.0,0.01148004]
[1764624380574,0.01157849,86367.0,86364.0,0.01148004]
[1764624380777,0.24314635,86368.0,86367.0,0.01148004]
[1764624380981,0.00029506,86369.0,86367.0,0.01148004]
[1764624381119,0.00029506,86369.0,86366.0,0.01157863]
[1764624381468,0.00029506,86369.0,86368.0,0.01148004]
[1764624381621,0.00029506,86369.0,86368.0,0.24304728]
[1764624382412,0.00029506,86369.0,86368.0,0.26160728]
[1764624382605,0.00029506,86369.0,86368.0,0.66160728]
[1764624383809,0.00029506,86369.0,86368.0,0.66260728]
[1764624384308,0.00029506,86369.0,86368.0,0.72513027]
[1764624384516,0.0002,86390.0,86386.0,0.01157594]
[1764624384797,0.0002,86390.0,86388.0,0.24299367]
[1764624385151,0.0002,86390.0,86388.0,0.64299367]
[1764624385355,1e-08,86390.0,86389.0,0.06252299]
[1764624385560,1e-08,86390.0,86389.0,0.07400303]
[1764624385968,1e-08,86390.0,86389.0,0.79700303]
[1764624386486,1e-08,86390.0,86389.0,0.79900303]
[1764624387076,0.0387138,86409.0,86389.0,0.79900303]
[1764624387274,0.0387138,86409.0,86408.0,0.62846307]
[1764624387548,0.0387138,86409.0,86408.0,0.24294008]
[1764624387754,0.0387138,86409.0,86408.0,0.26150008]
[1764624388145,0.0387138,86409.0,86408.0,0.32402307]
[1764624388352,0.00395135,86409.0,86408.0,2.69366731]
[1764624388532,0.0043402,86409.0,86408.0,2.69366731]
[1764624389186,0.0043402,86409.0,86408.0,2.68418727]
[1764624389376,0.01,86430.0,86411.0,2.616975]
[1764624389606,0.01,86430.0,86411.0,2.62857106]
[1764624389749,0.01,86430.0,86411.0,2.30557106]
[1764624389945,0.01157032,86428.0,86411.0,2.63156803]
[1764624390157,0.24298341,86426.0,86417.0,0.01157179]
[1764624390355,0.01,86430.0,86427.0,0.01157045]
[1764624390559,0.01,86430.0,86429.0,0.24288385]
[1764624390757,0.01,86430.0,86429.0,0.41148004]
[1764624390979,0.01194212,86430.0,86429.0,0.41148004]
[1764624391178,0.01194212,86430.0,86429.0,0.4]
[1764624391407,0.01194212,86430.0,86429.0,0.41148004]
[1764624391574,0.01194212,86430.0,86429.0,0.4]
[1764624392317,0.01194212,86430.0,86429.0,0.41148004]
[1764624392535,0.01194212,86430.0,86429.0,0.4]
[1764624392876,0.01194212,86430.0,86429.0,0.401]
[1764624393284,0.01194212,86430.0,86429.0,0.001]
[1764624393485,0.24298243,86426.0,86425.0,0.01148004]
[1764624393906,0.23142425,86422.0,86420.0,0.01856]
[1764624394174,0.01157099,86423.0,86421.0,0.41148004]
[1764624394309,0.01157099,86423.0,86422.0,0.01148004]
[1764624394709,0.23141831,86424.0,86421.0,0.4]
[1764624394710,0.23142255,86422.0,86421.0,0.41148004]
[1764624395109,0.01157099,86423.0,86422.0,0.01148004]
[1764624395110,0.24299204,86423.0,86422.0,0.01148004]
[1764624395510,0.24298243,86426.0,86421.0,0.41157126]
[1764624395713,0.24298243,86426.0,86425.0,0.01148004]
[1764624398107,0.23142255,86422.0,86421.0,0.01148004]
[1764624399726,0.23142255,86422.0,86421.0,0.01248004]
[1764624400125,0.23311012,86422.0,86421.0,0.01248004]
[1764624401620,0.23311012,86422.0,86421.0,0.01148004]
[1764624401955,0.23311012,86422.0,86417.0,0.01856]
[1764624401956,0.23143058,86419.0,86417.0,0.01856]
[1764624402190,0.23144715,86413.0,86411.0,0.00011602]
[1764624402377,0.23144933,86412.0,86411.0,0.00011602]
[1764624404209,0.23144933,86412.0,86411.0,0.00111602]
[1764624405069,0.23144933,86412.0,86411.0,0.00011602]
[1764624406537,0.55444933,86412.0,86411.0,0.00011602]
[1764624407774,0.57296933,86412.0,86411.0,0.00011602]
[1764624408275,0.57433865,86412.0,86411.0,0.00011602]
[1764624408514,0.55581865,86412.0,86411.0,0.00011602]
[1764624408776,0.57433865,86412.0,86411.0,0.00011602]
[1764624411686,0.23281865,86412.0,86411.0,0.00011602]
[1764624411884,0.23281865,86412.0,86411.0,0.23156803]
[1764624411885,0.00136932,86412.0,86411.0,0.23156803]
[1764624412095,0.00136932,86412.0,86411.0,0.24304807]
[1764624413682,0.00136932,86412.0,86411.0,0.01159606]
[1764624413842,0.23281865,86412.0,86411.0,0.00011602]
[1764624414165,0.23281865,86412.0,86411.0,0.00111602]
[1764624414542,0.23281865,86412.0,86411.0,0.00011602]
[1764624414943,0.23281865,86412.0,86411.0,0.00111602]
[1764624415915,0.23281865,86412.0,86411.0,0.01259606]
[1764624416113,0.23281865,86412.0,86411.0,0.01159606]
[1764624416311,0.00136932,86412.0,86411.0,0.00111602]
[1764624416646,0.00136932,86412.0,86411.0,0.01259606]
[1764624416830,0.00136932,86412.0,86411.0,0.01159606]
[1764624417214,0.00136932,86412.0,86411.0,0.24404807]
[1764624417865,0.00136932,86412.0,86411.0,0.24304807]
[1764624418065,0.00136932,86412.0,86411.0,0.24404807]
[1764624419967,0.00136932,86412.0,86411.0,0.64404807]
[1764624420169,0.00136932,86412.0,86411.0,5.64404807]
[1764624420388,0.00136932,86412.0,86411.0,5.64304807]
[1764624420787,0.00136932,86412.0,86411.0,8.02957106]
[1764624420992,0.00136932,86412.0,86411.0,8.01809102]
[1764624421200,0.00136932,86412.0,86411.0,8.02957106]
[1764624422007,0.00136932,86412.0,86411.0,8.02857106]
[1764624422835,0.00136932,86412.0,86411.0,8.03057106]
[1764624423215,0.00136932,86412.0,86411.0,8.02857106]
[1764624423415,0.00136932,86412.0,86411.0,7.96604807]
[1764624423620,0.00136932,86412.0,86411.0,7.96804807]
[1764624424253,0.00136932,86412.0,86411.0,7.64504807]
[1764624424458,0.00136932,86412.0,86411.0,5.66356807]
[1764624425717,0.00136932,86412.0,86411.0,7.72409106]
[1764624426577,0.00136932,86412.0,86411.0,7.72609106]
[1764624427001,0.00136932,86412.0,86411.0,7.72409106]
[1764624427404,0.00136932,86412.0,86411.0,8.04909106]
[1764624428542,0.00136932,86412.0,86411.0,8.04709106]
[1764624428742,0.00136932,86412.0,86411.0,8.04909106]
[1764624429375,0.00136932,86412.0,86411.0,8.04709106]
[1764624429529,0.00136932,86412.0,86411.0,8.04909106]
[1764624429957,0.00136932,86412.0,86411.0,6.04709106]
[1764624430133,0.00136932,86412.0,86411.0,8.04709106]
[1764624430371,0.00136932,86412.0,86411.0,8.04909106]
[1764624431491,1e-08,86412.0,86411.0,8.04709106]
[1764624431894,1e-08,86412.0,86411.0,8.05009106]
[1764624432584,1e-08,86412.0,86411.0,8.04709106]
[1764624432801,1e-08,86412.0,86411.0,8.05009106]
[1764624433439,1e-08,86412.0,86411.0,8.04709106]
[1764624433905,1e-08,86412.0,86411.0,7.66156807]
[1764624434347,1e-08,86412.0,86411.0,8.03561102]
[1764624434558,1e-08,86412.0,86411.0,8.05009106]
[1764624434978,0.01,86430.0,86429.0,0.24288385]
[1764624435180,0.01,86430.0,86429.0,0.30804809]
[1764624435590,0.01,86430.0,86429.0,0.70804809]
[1764624436112,0.01,86430.0,86429.0,0.71004809]
[1764624436452,0.23133686,86456.0,86454.0,0.01148004]
[1764624436702,0.2428954,86457.0,86454.0,0.24281693]
[1764624436914,0.24292723,86460.0,86453.0,0.01156697]
[1764624436915,4.008e-05,86460.0,86459.0,0.24280355]
[1764624437121,4.008e-05,86460.0,86459.0,0.03000004]
[1764624437325,4.008e-05,86460.0,86459.0,0.23132351]
[1764624437530,0.0115651,86467.0,86460.0,0.01156604]
[1764624437728,0.24287002,86466.0,86461.0,0.24288327]
[1764624438014,0.24287002,86466.0,86465.0,0.01148004]
[1764624438227,0.01156497,86468.0,86465.0,0.01148004]
[1764624438431,0.01156577,86462.0,86459.0,0.01863602]
[1764624438648,0.24288135,86462.0,86461.0,0.01148004]
[1764624438867,0.24288135,86462.0,86461.0,0.01248004]
[1764624439073,0.24286461,86468.0,86463.0,0.01148004]
[1764624439074,0.01156497,86468.0,86463.0,0.01148004]
[1764624439299,0.24286707,86468.0,86467.0,0.01148004]
[1764624439499,0.2428724,86466.0,86460.0,0.01156604]
[1764624439705,0.2313054,86466.0,86462.0,0.24288078]
[1764624439928,0.01156537,86465.0,86459.0,0.00111602]
[1764624440132,0.01156537,86465.0,86460.0,0.01156604]
[1764624440369,0.24286727,86467.0,86463.0,0.2427909]
[1764624440559,0.24286727,86467.0,86463.0,0.01148004]
[1764624440767,11.99807185,86500.0,86471.0,0.23129093]
[1764624440969,11.01270069,86500.0,86471.0,0.01852]
[1764624441169,0.01156189,86491.0,86490.0,0.01148004]
[1764624441294,0.01156162,86493.0,86482.0,0.01852]
[1764624441489,0.24279478,86493.0,86492.0,0.01148004]
[1764624442350,0.23122199,86497.0,86493.0,0.01148004]
[1764624442598,0.24278868,86495.0,86492.0,0.00011602]
[1764624442797,0.01156122,86496.0,86492.0,0.00011602]
[1764624443002,0.01156122,86496.0,86495.0,0.01148004]
[1764624443513,0.01156136,86495.0,86492.0,0.01167778]
[1764624443754,0.01156109,86497.0,86496.0,0.01148004]
[1764624444210,11.01270069,86500.0,86498.0,0.01148004]
[1764624444383,11.01270069,86500.0,86492.0,0.00011602]
[1764624444545,0.23123258,86493.0,86492.0,0.00011602]
[1764624445690,0.23123258,86493.0,86492.0,0.01159606]
[1764624447046,0.23123258,86493.0,86492.0,0.00011602]
[1764624447452,0.23380894,86493.0,86492.0,0.00011602]
[1764624447914,0.00257636,86493.0,86492.0,0.01159606]
[1764624448117,0.00257636,86493.0,86492.0,0.00011602]
[1764624448903,0.00257636,86493.0,86492.0,0.01159606]
[1764624449061,0.00257636,86493.0,86492.0,0.00011602]
[1764624449274,0.23380894,86493.0,86492.0,0.01159606]
[1764624449487,0.23380894,86493.0,86492.0,0.00011602]
[1764624450854,0.00257636,86493.0,86492.0,0.24283131]
[1764624451944,0.00257636,86493.0,86492.0,0.24383131]
[1764624452201,0.00257636,86493.0,86492.0,0.26231131]
[1764624452629,0.23380894,86493.0,86492.0,0.00111602]
[1764624454213,0.23380894,86493.0,86492.0,0.00011602]
[1764624454422,0.23380894,86493.0,86492.0,0.00111602]
[1764624454832,0.23380894,86493.0,86492.0,0.00011602]
[1764624455252,0.23380894,86493.0,86492.0,0.00111602]
[1764624455636,0.23380894,86493.0,86492.0,0.00011602]
[1764624455930,0.31225978,86493.0,86492.0,0.00011602]
[1764624456154,0.23380894,86493.0,86492.0,0.00011602]
[1764624459505,0.55680894,86493.0,86492.0,0.00011602]
[1764624459706,0.58168448,86493.0,86492.0,0.00011602]
[1764624460603,0.01156737,86450.0,86441.0,0.01156858]
[1764624460827,0.01156737,86450.0,86443.0,0.01156831]
[1764624460954,0.01156764,86448.0,86445.0,0.01148004]
[1764624461153,0.01156737,86450.0,86445.0,0.01148004]
[1764624461474,0.01156577,86462.0,86445.0,0.01148004]
[1764624461813,0.01156724,86451.0,86447.0,0.01156778]
[1764624462026,0.24291291,86451.0,86448.0,0.23135271]
[1764624462218,0.01156564,86463.0,86455.0,0.01148004]
[1764624462377,0.23132905,86457.0,86455.0,0.01148004]
[1764624462582,0.01156671,86455.0,86448.0,0.01156764]
[1764624462794,0.01156671,86455.0,86452.0,0.24290814]
[1764624462986,0.23131347,86463.0,86455.0,0.02304675]
[1764624463166,0.01156604,86460.0,86456.0,0.01156657]
[1764624463366,0.01156617,86459.0,86455.0,0.01148004]
[1764624463648,0.01156617,86459.0,86454.0,0.01156684]
[1764624463649,0.01156644,86457.0,86446.0,0.23135581]
[1764624463837,0.23134543,86451.0,86446.0,0.24292477]
[1764624464042,0.01156644,86457.0,86452.0,0.24290884]
[1764624464353,0.24289849,86456.0,86452.0,0.01156711]
[1764624464639,0.0115663,86458.0,86454.0,0.01156684]
[1764624464983,0.24289361,86458.0,86454.0,0.24290237]
[1764624465189,0.01156617,86459.0,86455.0,0.01156671]
[1764624465389,0.24288001,86463.0,86456.0,0.01156657]
[1764624465587,0.24288617,86461.0,86460.0,0.01148004]
[1764624466736,0.01156564,86463.0,86458.0,0.23132619]
[1764624466951,0.01156564,86463.0,86462.0,0.01148004]
[1764624467283,0.24287889,86463.0,86462.0,0.01148004]
[1764624467495,0.23131782,86462.0,86460.0,0.001]
[1764624467652,0.23132967,86457.0,86453.0,0.01156697]
[1764624467858,0.0115639,86476.0,86470.0,0.0115647]
[1764624468051,0.01156416,86474.0,86462.0,0.2313144]
[1764624468262,0.24285351,86472.0,86465.0,0.24287129]
[1764624468472,0.01156483,86469.0,86465.0,0.24287129]
[1764624468670,0.0115647,86470.0,86466.0,0.01156523]
[1764624468871,0.01156483,86469.0,86465.0,0.01156537]
[1764624469052,0.24286464,86468.0,86465.0,0.24298733]
[1764624469254,0.01156497,86468.0,86465.0,0.00011607]
[1764624469526,0.2313026,86467.0,86465.0,0.00011607]
[1764624469890,0.23130479,86466.0,86465.0,0.00111607]
[1764624470264,0.23130479,86466.0,86465.0,0.00011607]
[1764624470562,0.23130479,86466.0,86465.0,0.00111607]
[1764624470776,0.24286458,86468.0,86465.0,0.00111607]
[1764624470999,0.23130211,86467.0,86465.0,0.00111607]
[1764624471360,0.23130238,86467.0,86465.0,0.00111607]
[1764624471912,0.23130479,86466.0,86465.0,0.00011607]
[1764624472105,0.0115647,86470.0,86466.0,0.24287002]
[1764624472350,0.01156443,86472.0,86469.0,0.01156483]
[1764624472573,0.01156443,86472.0,86465.0,0.00111607]
[1764624472574,0.23130211,86467.0,86465.0,0.00111607]
[1764624472857,0.23130479,86466.0,86465.0,0.00111607]
[1764624473357,0.23130479,86466.0,86465.0,0.00011607]
[1764624473358,0.23302291,86466.0,86465.0,0.00011607]
[1764624474482,0.00171812,86466.0,86465.0,0.00011607]
[1764624474728,0.23302291,86466.0,86465.0,0.00011607]
[1764624474902,0.00171812,86466.0,86465.0,0.00011607]
[1764624475461,0.00171812,86466.0,86465.0,0.00111607]
[1764624475668,0.23302291,86466.0,86465.0,0.00111607]
[1764624475866,0.00171812,86466.0,86465.0,0.00011607]
[1764624476042,0.00171812,86466.0,86465.0,0.23242353]
[1764624476386,0.00171812,86466.0,86465.0,0.24390357]
[1764624476837,0.00171812,86466.0,86465.0,0.24290357]
[1764624477165,0.00171812,86466.0,86465.0,0.23142353]
[1764624477367,0.00171812,86466.0,86465.0,0.24290357]
[1764624478131,0.00171812,86466.0,86465.0,0.24390357]
[1764624478605,0.00171812,86466.0,86465.0,0.64290357]
[1764624479013,0.00171812,86466.0,86465.0,0.64490357]
[1764624479560,0.00171812,86466.0,86465.0,0.64290357]
[1764624479811,0.00171812,86466.0,86465.0,0.64490357]
[1764624480529,0.00171812,86466.0,86465.0,0.66338357]
[1764624482980,0.00171812,86466.0,86465.0,0.72590656]
[1764624483263,0.00171812,86466.0,86465.0,0.71442652]
[1764624483840,0.00171812,86466.0,86465.0,0.72590656]
[1764624484237,0.00171812,86466.0,86465.0,3.04890656]
[1764624484641,0.00171812,86466.0,86465.0,3.04690656]
[1764624484992,0.00171812,86466.0,86465.0,0.63442353]
[1764624485213,0.00171812,86466.0,86465.0,0.64590357]
[1764624485801,0.00171812,86466.0,86465.0,0.64290357]
[1764624485971,0.00171812,86466.0,86465.0,0.64490357]
[1764624486179,0.00171812,86466.0,86465.0,0.63342353]
[1764624486421,0.00171812,86466.0,86465.0,0.64290357]
[1764624486892,0.00171812,86466.0,86465.0,0.23142353]
[1764624487128,0.00171812,86466.0,86465.0,0.00011607]
[1764624487561,0.00171812,86466.0,86465.0,0.01159611]
[1764624488110,0.00171812,86466.0,86465.0,0.01359611]
[1764624488738,0.00171812,86466.0,86465.0,0.01159611]
[1764624488924,0.00171812,86466.0,86465.0,0.01359611]
[1764624489104,0.00171812,86466.0,86465.0,0.00211607]
[1764624489506,0.00171812,86466.0,86465.0,0.01359611]
[1764624489916,0.00171812,86466.0,86465.0,0.00011607]
[1764624490171,0.00171812,86466.0,86465.0,0.01159611]
[1764624490372,0.00171812,86466.0,86465.0,0.24290357]
[1764624490525,0.23302291,86466.0,86465.0,0.00011607]
[1764624491131,0.23302291,86466.0,86465.0,0.00111607]
[1764624491330,0.37467194,86466.0,86465.0,0.00111607]
[1764624491530,0.39315194,86466.0,86465.0,0.00011607]
[1764624491935,0.39315194,86466.0,86465.0,0.00111607]
[1764624492339,0.39315194,86466.0,86465.0,0.00011607]
[1764624492950,0.29814715,86466.0,86465.0,0.00011607]
[1764624493156,0.68367014,86466.0,86465.0,0.00011607]
[1764624494561,0.68367014,86466.0,86395.0,0.08696689]
[1764624494562,0.23141644,86425.0,86395.0,0.08696689]
[1764624494777,0.23141644,86425.0,86423.0,0.40011609]
[1764624494990,0.23141644,86425.0,86423.0,0.00011609]
[1764624495550,0.23141644,86425.0,86423.0,0.00211609]
[1764624495995,0.23141644,86425.0,86423.0,0.00011609]
[1764624496399,0.23141644,86425.0,86423.0,0.00111609]
[1764624496400,0.14152364,86424.0,86423.0,0.00111609]
[1764624496606,0.46452364,86424.0,86423.0,0.00111609]
[1764624496833,0.23144933,86412.0,86411.0,5.0]
[1764624497013,0.24992933,86412.0,86411.0,5.00011611]
[1764624497415,0.63545232,86412.0,86411.0,4.3875754]
[1764624497618,0.63545232,86412.0,86411.0,4.30969111]
[1764624499004,0.63545232,86412.0,86411.0,3.70154969]
[1764624499253,0.63545232,86412.0,86411.0,3.5454942]
[1764624499459,0.63545232,86412.0,86411.0,3.38916908]
[1764624499682,0.75067828,86412.0,86411.0,3.38916908]
[1764624499913,0.75067828,86412.0,86411.0,2.61930449]
[1764624500105,0.75067828,86412.0,86411.0,2.43815121]
[1764624500335,0.75067828,86412.0,86411.0,2.18027607]
[1764624500504,0.75067828,86412.0,86411.0,2.06124102]
[1764624500721,0.75067828,86412.0,86411.0,1.77081037]
[1764624501117,0.75167828,86412.0,86411.0,1.77081037]
[1764624501753,0.75067828,86412.0,86411.0,1.77081037]
[1764624501895,0.75167828,86412.0,86411.0,1.77081037]
[1764624502091,0.75167828,86412.0,86411.0,1.15519679]
[1764624502486,0.75067828,86412.0,86411.0,1.15519679]
[1764624502687,0.75167828,86412.0,86411.0,0.48826761]
[1764624502928,0.75167828,86412.0,86411.0,0.25811939]
[1764624503135,0.83765548,86412.0,86411.0,0.25811939]
[1764624503543,0.87246801,86412.0,86411.0,1e-08]
[1764624504043,0.87146801,86412.0,86411.0,1e-08]
[1764624504464,0.87246801,86412.0,86411.0,1e-08]
[1764624504988,0.87146801,86412.0,86411.0,1e-08]
[1764624505190,0.87246801,86412.0,86411.0,1e-08]
[1764624506301,1.11689993,86412.0,86411.0,1e-08]
[1764624507818,3.11689993,86412.0,86411.0,1e-08]
[1764624508914,3.23899993,86412.0,86411.0,1e-08]
[1764624509140,3.11689993,86412.0,86411.0,1e-08]
[1764624509353,3.09841993,86412.0,86411.0,1e-08]
[1764624509559,1.11689993,86412.0,86411.0,1e-08]
[1764624510274,3.11689993,86412.0,86411.0,1e-08]
[1764624510679,3.13505367,86412.0,86411.0,1e-08]
[1764624511334,3.11689993,86412.0,86411.0,1e-08]
[1764624511746,3.13505361,86412.0,86411.0,1e-08]
[1764624512213,0.0115738,86402.0,86376.0,0.01157728]
[1764624512390,0.24308103,86391.0,86379.0,0.01157688]
[1764624512530,0.01157514,86392.0,86380.0,0.01157675]
[1764624512764,0.06512424,86394.0,86382.0,0.01157648]
[1764624514997,0.01157648,86382.0,86376.0,0.00038885]
[1764624515199,0.01157568,86388.0,86376.0,0.01296613]
[1764624515405,0.01157554,86389.0,86376.0,0.24451119]
[1764624515737,0.24308681,86389.0,86378.0,0.01157702]
[1764624515890,0.01157581,86387.0,86376.0,0.24451189]
[1764624516101,0.01157568,86388.0,86377.0,0.01157715]
[1764624516508,0.24308681,86389.0,86377.0,0.01157715]
[1764624516709,0.24308681,86389.0,86378.0,0.01157702]
[1764624516910,0.01157635,86383.0,86376.0,0.00138885]
[1764624517226,0.01157635,86383.0,86376.0,0.00038885]
[1764624517425,0.01157661,86381.0,86376.0,0.00038885]
[1764624517603,0.24310641,86382.0,86376.0,0.00038885]
[1764624517804,0.01157648,86382.0,86376.0,0.00038885]
[1764624518106,0.01157621,86384.0,86376.0,0.00138885]
[1764624518307,0.01157688,86379.0,86376.0,0.00138885]
[1764624518563,0.24311262,86380.0,86376.0,0.00138885]
[1764624518748,0.01157621,86384.0,86376.0,0.00138885]
[1764624518749,0.23152491,86384.0,86376.0,0.00138885]
[1764624519069,0.01157688,86379.0,86376.0,0.00138885]
[1764624519269,0.24311268,86380.0,86376.0,0.00038885]
[1764624519588,0.24311268,86380.0,86376.0,0.00138885]
[1764624519819,0.01157648,86382.0,86376.0,0.00138885]
[1764624520004,0.01157688,86379.0,86376.0,0.00138885]
[1764624520214,0.01157688,86379.0,86376.0,0.00038885]
[1764624520447,0.01157688,86379.0,86376.0,0.00138885]
[1764624520597,0.09834682,86379.0,86376.0,0.00138885]
[1764624520799,0.23154311,86377.0,86376.0,0.00038885]
[1764624521208,0.23154311,86377.0,86376.0,0.00138885]
[1764624521209,0.24312214,86377.0,86376.0,0.00138885]
[1764624521898,0.56612214,86377.0,86376.0,0.00138885]
[1764624522241,0.62864513,86377.0,86376.0,0.00138885]
[1764624522446,0.62864513,86377.0,86376.0,0.00038885]
[1764624522645,0.74387109,86377.0,86376.0,0.00138885]
[1764624522803,0.7687211,86377.0,86376.0,0.00138885]
[1764624523196,0.7687211,86377.0,86376.0,0.00038885]
[1764624524322,0.7882011,86377.0,86376.0,0.00038885]
[1764624524727,0.81931888,86377.0,86376.0,0.00038885]
[1764624525349,0.7872011,86377.0,86376.0,0.00038885]
[1764624525831,0.7882011,86377.0,86376.0,0.00038885]
[1764624526310,0.7872011,86377.0,86376.0,0.00038885]
[1764624526513,0.2315592,86371.0,86370.0,0.0004]
[1764624526728,0.75715816,86371.0,86370.0,0.00051617]
[1764624527300,0.79872035,86371.0,86370.0,0.00051617]
[1764624527512,0.75715816,86371.0,86370.0,0.00051617]
[1764624527922,0.6419322,86371.0,86370.0,0.00051617]
[1764624528378,0.88636411,86371.0,86370.0,0.00051617]
[1764624528794,0.27488921,86371.0,86370.0,0.00051617]
[1764624529228,0.27588921,86371.0,86370.0,0.00051617]
[1764624529644,0.3384122,86371.0,86370.0,0.00051617]
[1764624529812,0.76719244,86371.0,86370.0,0.00051617]
[1764624531805,0.6604122,86371.0,86370.0,0.00051617]
[1764624532594,0.6614122,86371.0,86370.0,0.00051617]
[1764624532973,0.6604122,86371.0,86370.0,0.00051617]
[1764624534111,0.6614122,86371.0,86370.0,0.00051617]
[1764624534335,0.90784411,86371.0,86370.0,0.00051617]
[1764624534532,0.90584411,86371.0,86370.0,0.00051617]
[1764624534688,1.02307007,86371.0,86370.0,0.00051617]
[1764624535307,1.02207007,86371.0,86370.0,0.00051617]
[1764624535534,1.02307007,86371.0,86370.0,0.00051617]
[1764624536115,1.02207007,86371.0,86370.0,0.00051617]
[1764624536309,1.02307007,86371.0,86370.0,0.00051617]
[1764624536762,1.02107007,86371.0,86370.0,0.00051617]
[1764624536911,0.90584411,86371.0,86370.0,0.00051617]
[1764624537115,0.82584112,86371.0,86370.0,0.01051617]
[1764624537320,0.84432112,86371.0,86370.0,0.01051617]
[1764624541979,0.82584112,86371.0,86370.0,0.01051617]
[1764624542191,0.84432112,86371.0,86370.0,0.01051617]
[1764624542699,0.95954708,86371.0,86370.0,0.01051617]
[1764624543510,1.02207007,86371.0,86370.0,0.01051617]
[1764624545296,1.00359007,86371.0,86370.0,0.01051617]
[1764624545502,1.02207007,86371.0,86370.0,0.01051617]
[1764624546083,0.90684411,86371.0,86370.0,0.01051617]
[1764624547820,0.90584411,86371.0,86370.0,0.01051617]
[1764624548021,0.90684411,86371.0,86370.0,0.01051617]
[1764624548221,0.90584411,86371.0,86370.0,0.00051617]
[1764624549498,0.90484411,86371.0,86370.0,0.00051617]
[1764624549698,0.90584411,86371.0,86370.0,0.00651617]
[1764624549904,1.02107007,86371.0,86370.0,0.00051617]
[1764624550367,1.02207007,86371.0,86370.0,0.00651617]
[1764624550497,1.02107007,86371.0,86370.0,0.00051617]
[1764624550695,1.02107007,86371.0,86370.0,0.00651617]
[1764624551331,1.06163226,86371.0,86370.0,0.00651617]
[1764624551530,1.06263226,86371.0,86370.0,0.00651617]
[1764624552147,1.06163226,86371.0,86370.0,0.00651617]
[1764624552365,1.02107007,86371.0,86370.0,0.00651617]
[1764624552909,1.02107007,86371.0,86370.0,0.00051617]
[1764624553277,1.02207007,86371.0,86370.0,0.00651617]
[1764624553472,1.02107007,86371.0,86370.0,0.00051617]
[1764624553993,1.02007007,86371.0,86370.0,0.00051617]
[1764624554466,1.0637716,86371.0,86370.0,0.00651617]
[1764624554691,1.0637716,86371.0,86370.0,0.00051617]
[1764624554692,1.0627716,86371.0,86370.0,0.00051617]
[1764624554910,1.0617716,86371.0,86370.0,0.00051617]
[1764624555169,1.0637716,86371.0,86370.0,0.00651617]
[1764624555388,1.02207007,86371.0,86370.0,0.00651617]
[1764624555620,1.02107007,86371.0,86370.0,0.00651617]
[1764624556051,1.0637716,86371.0,86370.0,0.00651617]
[1764624556202,1.0627716,86371.0,86370.0,0.00051617]
[1764624556450,0.77763816,86371.0,86370.0,1e-08]
[1764624556623,2.77763816,86371.0,86370.0,1e-08]
[1764624557229,2.77663816,86371.0,86370.0,1e-08]
[1764624557448,2.79580039,86371.0,86370.0,1e-08]
[1764624557788,0.61711437,86359.0,86313.0,0.01158574]
[1764624557921,0.7476296,86359.0,86358.0,0.00232348]
[1764624558522,0.64196438,86359.0,86358.0,0.00232348]
[1764624559156,0.66044438,86359.0,86358.0,0.00232348]
[1764624559360,0.66144438,86359.0,86358.0,0.00832348]
[1764624559587,0.64296438,86359.0,86358.0,0.00832348]
[1764624559788,0.66144438,86359.0,86358.0,0.00832348]
[1764624559988,0.77667034,86359.0,86358.0,0.00832348]
[1764624560856,0.23169333,86321.0,86290.0,0.00999999]
[1764624561053,0.57317333,86321.0,86320.0,0.00051629]
[1764624561256,0.61981757,86321.0,86320.0,0.00051629]
[1764624561459,0.60133757,86321.0,86320.0,0.00051629]
[1764624561668,0.61981757,86321.0,86320.0,0.00051629]
[1764624561905,0.01158439,86323.0,86320.0,0.00151629]
[1764624562136,0.23169092,86322.0,86320.0,0.00151629]
[1764624562440,0.05822863,86323.0,86320.0,0.00151629]
[1764624562441,0.23169333,86321.0,86320.0,0.00151629]
[1764624562661,0.23169092,86322.0,86320.0,0.00151629]
[1764624562856,0.23269333,86321.0,86320.0,0.01151629]
[1764624563062,0.23169333,86321.0,86320.0,0.00151629]
[1764624563272,0.23169092,86322.0,86320.0,0.00151629]
[1764624563479,0.23169333,86321.0,86320.0,0.00751629]
[1764624563673,0.23169333,86321.0,86320.0,0.00051629]
[1764624564130,0.001,86321.0,86320.0,0.00751629]
[1764624566024,0.001,86321.0,86320.0,0.01899633]
[1764624566270,0.001,86321.0,86320.0,0.2392123]
[1764624566470,0.001,86321.0,86320.0,0.25069234]
[1764624567234,0.24324543,86333.0,86326.0,0.01148004]
[1764624567567,0.01158292,86334.0,86326.0,0.24326335]
[1764624567865,0.24324451,86333.0,86326.0,0.01148004]
[1764624568050,0.01158332,86331.0,86325.0,0.01148004]
[1764624568253,0.01158319,86332.0,86326.0,0.01148004]
[1764624568462,0.01158345,86330.0,86325.0,0.01148004]
[1764624568659,0.24324987,86331.0,86325.0,0.01148004]
[1764624568865,0.24324989,86331.0,86324.0,0.01148004]
[1764624569069,0.24324989,86331.0,86324.0,0.0230643]
[1764624569402,0.03006265,86336.0,86328.0,0.01148004]
[1764624569619,0.001,86330.0,86326.0,0.01148004]
[1764624569749,0.01158319,86332.0,86322.0,0.01158453]
[1764624569949,0.01158305,86333.0,86326.0,0.001]
[1764624570173,0.001,86331.0,86326.0,0.001]
[1764624570348,0.01158305,86333.0,86324.0,0.24326432]
[1764624570546,0.01158332,86331.0,86326.0,0.001]
[1764624570754,0.001,86330.0,86326.0,0.008]
[1764624571251,0.001,86330.0,86327.0,0.01158386]
[1764624571447,0.001,86330.0,86326.0,0.25026242]
[1764624571662,0.001,86330.0,86326.0,0.01858399]
[1764624571860,0.26171575,86336.0,86329.0,0.01250813]
[1764624572177,0.001,86331.0,86328.0,0.24325771]
[1764624572376,0.00999999,86360.0,86328.0,0.24325771]
[1764624572377,0.04664424,86350.0,86336.0,0.01158265]
[1764624572583,0.01158184,86342.0,86330.0,0.01158345]